[Event "Olympiad-42"]
[Site "Baku"]
[Date "2016.09.10"]
[Round "8.1"]
[White "Fier, Alexandr"]
[Black "Nikolov, Momchil"]
[Result "1-0"]
[ECO "D32"]
[WhiteElo "2634"]
[BlackElo "2585"]
[Annotator "Fier,A"]
[PlyCount "125"]
[EventDate "2016.09.02"]
[EventType "team-swiss"]
[EventRounds "11"]
[EventCountry "AZE"]
[SourceTitle "CBM 175"]
[Source "ChessBase"]
[SourceDate "2016.11.10"]
[SourceVersion "1"]
[SourceVersionDate "2016.11.10"]
[SourceQuality "1"]
[WhiteTeam "Brazil"]
[BlackTeam "Bulgaria"]
[WhiteTeamCountry "BRA"]
[BlackTeamCountry "BUL"]
[TimeControl "40/5400+30:1800+30"]

1. d4 {[%emt 0:00:00]} Nf6 {[%emt 0:00:00]} 2. c4 {[%emt 0:00:00]} e6 {[%emt 0:
00:00]} 3. Nf3 {[%emt 0:00:00]} d5 {[%emt 0:00:00]} 4. Nc3 {[%emt 0:00:00]} c5
{[%emt 0:00:08]} 5. e3 {[%emt 0:00:00]} Nc6 {[%emt 0:01:12]} 6. cxd5 {[%emt 0:
00:00]} exd5 {[%emt 0:02:49]} 7. Bb5 {[%emt 0:00:00]} cxd4 {[%emt 0:06:37]} 8.
Nxd4 {[%emt 0:04:12]} Bd7 {[%emt 0:00:40] During the game I was trying to
understand how to play this position with reversed colours, coming from a
Caro-Kann, but without much success.} 9. O-O {[%emt 0:00:09]} Bd6 {[%emt 0:03:
53]} 10. Nf3 Be6 {[%emt 0:12:06]} 11. b3 {[%emt 0:08:23]} O-O {[%emt 0:01:22]}
12. Bb2 {[%emt 0:00:03]} a6 {[%emt 0:02:20]} 13. Bxc6 {[%emt 0:07:19] I
decided to go for a more forcing line, trying to not lose time withdrawing the
bishop. This exchange is also typical of the Nimzo-Indian.} (13. Be2 Rc8 14.
Rc1 Re8 {Smyslov,V-Petrosian,T Herceg Novi blitz 1970 0-1 is also playable for
both sides and it has been played in a blitz game between two World Champions!}
) 13... bxc6 {[%emt 0:00:07]} 14. Rc1 {[%emt 0:00:01]} c5 {[%emt 0:03:32] If
Black is able to keep the structure like this without bigger problems the
position is more than fine, so I have to attack the pawns immediately.} 15. Na4
{[%emt 0:01:10]} Ne4 {[%emt 0:01:58]} 16. Nd2 {[%emt 0:02:21]} Qh4 {[%emt 0:16:
32]} (16... Nxd2 {was probably better and I was thinking of something like
this:} 17. Qxd2 Rc8 18. Ba3 Qe7 19. Nb6 $5 (19. Qa5 c4 20. Bxd6 Qxd6 21. Qd2 {
is a complex endgame with pluses for both sides.}) 19... Bxh2+ 20. Kxh2 Qd6+
21. f4 Qxb6 22. f5 Qd6+ 23. Kg1 Bd7 24. f6 {with an enjoyable mess.}) 17. f4 {
[%emt 0:02:49]} (17. g3 {weakens the kingside but it's also ok} Qe7 (17... Nxg3
{gives nothing:} 18. hxg3 Bxg3 19. Nf3 $18) 18. Nxe4 dxe4 19. Qc2 Bh3 20. Rfd1
{and if White doesn't get mated he is better.}) 17... Bg4 {[%emt 0:05:11]} 18.
Nf3 {[%emt 0:00:28]} Qh5 {[%emt 0:00:40]} 19. Nb6 {[%emt 0:01:35] I have the
feeling that my opponent missed this idea.} Rad8 {[%emt 0:03:18]} 20. Qxd5 {
[%emt 0:00:37] After this I thought I was much better, but finally things are
not so simple.} Bf5 {[%emt 0:09:36]} (20... Rfe8 21. Qxh5 Bxh5 22. Rfd1 f6 23.
Na4 {would also give an advantage for White, but things are far from over.
Black's pieces are quite active.}) 21. Qc6 {[%emt 0:00:37]} Qh6 {[%emt 0:12:53]
} 22. Be5 {[%emt 0:00:56]} Qe6 {[%emt 0:00:53]} 23. Nc4 {[%emt 0:04:36]
Missing my opponent's reply.} (23. Rfd1 Bxe5 24. Nxe5 Rxd1+ 25. Rxd1 f6 26.
Qxe6+ Bxe6 27. Nc6 {with a healthy pawn up.}) 23... Rc8 {[%emt 0:02:29]} 24.
Qa4 {[%emt 0:00:37]} (24. Qxa6 Ra8 25. Qc6 Bxe5 26. Qxe6 Bxe6 27. fxe5 Rxa2)
24... Be7 {[%emt 0:01:17] Now my pieces are not so well coordinated, but also
it's not clear what is going to be Black's plan.} 25. Ba1 {[%emt 0:03:36]
Avoiding 25...f6.} h5 {[%emt 0:00:55]} (25... f6 26. Nh4 {and without the
bishop, Black has no compensation.} Bg4 $2 27. f5 Qd5 28. Nb6 $18) 26. Nce5 {
[%emt 0:03:13]} h4 {[%emt 0:04:48]} 27. Qc4 {[%emt 0:00:38]} h3 $6 {[%emt 0:01:
41] Forcing me to enter a line that is good for White.} (27... Rfd8 28. h3 Bf6
{and I'm slightly better, but I was not sure about what to do next.}) 28. g4 $1
{[%emt 0:00:37]} Bxg4 {[%emt 0:01:28]} 29. Qxe4 {[%emt 0:00:05]} f6 {[%emt 0:
00:31]} 30. Qc4 {[%emt 0:01:11] A solid way to play, but now Black still has
some compensation for the pawn.} (30. Nh4 $1 {was not so easy to see} fxe5 31.
f5 Qc6 (31... Qh6 32. Ng6 Bg5 33. Rce1 (33. Qxg4 Bxe3+ 34. Kh1 Bxc1 35. f6 Bg5
{is less clear}) 33... Bh5 34. Nxf8 {with decisive advantage.}) 32. Qxg4 Bxh4
33. Bxe5 Bf6 34. Bxf6 Qxf6 35. Qxh3 {and White is just two pawns up.}) 30...
fxe5 {[%emt 0:00:09]} 31. Nxe5 Qxc4 {[%emt 0:01:22]} 32. Nxc4 {[%emt 0:00:51]}
Bf5 $2 {[%emt 0:01:33]} (32... g5 {was what I expected} 33. Ne5 (33. Be5 gxf4
34. exf4 $14) 33... Bf5 34. fxg5 Bxg5 35. Rf3 $14) 33. e4 {[%emt 0:00:24]} Bd7
{[%emt 0:01:39]} 34. Nb6 {[%emt 0:00:30] I was playing a bit too quickly and
went for a plan that doesn't work.} (34. f5 Bb5 35. e5 $18) 34... Rcd8 {
[%emt 0:00:06]} 35. Nxd7 $6 {[%emt 0:02:45]} (35. Nd5 Bd6 36. Rc3 Bc6 37. Rg3 {
is the best way to proceed and White should win.}) 35... Rxd7 {[%emt 0:00:01]}
36. Rc3 $6 {[%emt 0:00:05]} (36. Be5 Rd2 37. Rf2 Rfd8 38. Rc3 Rd1+ 39. Rf1 R1d3
{and it's not easy for White to prove the advantage.}) 36... Rd2 {[%emt 0:00:
33]} (36... Bf6 $1 {I saw this immediately when I played} 37. e5 (37. Rcf3 Bxa1
38. Rxa1 Rd2 39. e5 g5 40. f5 Rg2+ 41. Kh1 g4 42. Rff1 Rd8 {with a probable
draw.}) 37... Bxe5 38. fxe5 Rxf1+ 39. Kxf1 Rd1+ 40. Kf2 Rxa1 41. a4 Ra3 42.
Rxc5 Rxb3 43. Ra5 g5 44. Rxa6 Kg7 {and I think Black should hold}) 37. Rxh3 {
[%emt 0:00:18]} Rxa2 {[%emt 0:01:47]} 38. Rg3 {[%emt 0:00:12]} Rf7 {[%emt 0:01:
05]} 39. f5 {[%emt 0:00:05]} Bd6 {[%emt 0:01:34]} 40. Rg2 {[%emt 0:00:00]}
Rxg2+ {[%emt 0:00:00]} 41. Kxg2 {[%emt 0:00:11] Finally we reached move 40 and
Black's position is hopeless.} Rb7 {[%emt 0:08:45]} 42. e5 {[%emt 0:00:49]} Be7
{[%emt 0:00:23]} 43. Rf3 {[%emt 0:00:34]} Rb4 {[%emt 0:00:23]} 44. Rg3 {
[%emt 0:02:06]} Kf8 {[%emt 0:02:38]} 45. e6 {[%emt 0:00:34]} Bf6 {[%emt 0:00:
42]} 46. Bxf6 {[%emt 0:00:16]} gxf6 {[%emt 0:00:02]} 47. Rc3 {[%emt 0:03:51] A
solid continuation, I thought I could take the pawn on f6, but it is better to
play without risk.} (47. Rg6 Rxb3 48. Rxf6+ Ke8 49. Rf7 c4 50. h4) 47... Rb5 {
[%emt 0:00:59] Tricky, threatening ...c4 in some variations.} 48. Kg3 {[%emt 0:
04:16]} Ke7 {[%emt 0:05:29]} (48... c4 {is not enough} 49. bxc4 Rxf5 50. c5 Ke7
51. c6 Kd8 52. c7+ Kc8 53. Re3 Rg5+ 54. Kf4 Rg8 55. e7 Re8 56. Kf5 $18) 49. Kg4
{[%emt 0:00:11]} Kd6 {[%emt 0:10:27]} 50. Rd3+ {[%emt 0:00:39]} Ke7 {[%emt 0:
00:14]} 51. Rd5 {[%emt 0:11:48] Entering a winning queen endgame.} Ke8 {
[%emt 0:04:54]} 52. Kh5 {[%emt 0:04:00]} c4 {[%emt 0:00:42]} 53. bxc4 {[%emt 0:
00:02]} Rxd5 {[%emt 0:00:09]} 54. cxd5 {[%emt 0:00:02]} a5 {[%emt 0:00:13]} 55.
d6 {[%emt 0:00:04]} a4 {[%emt 0:00:05]} 56. d7+ {[%emt 0:00:04]} Ke7 {[%emt 0:
00:49]} 57. Kg6 {[%emt 0:00:04]} a3 {[%emt 0:00:19]} 58. d8=Q+ {[%emt 0:00:03]}
Kxd8 {[%emt 0:00:07]} 59. Kf7 {[%emt 0:00:02]} a2 {[%emt 0:00:10]} 60. e7+ {
[%emt 0:00:02]} Kc7 {[%emt 0:00:07]} 61. e8=Q {[%emt 0:00:04]} a1=Q {[%emt 0:
00:10]} 62. Qe7+ {[%emt 0:00:02]} Kb8 {[%emt 0:00:21]} 63. h4 {[%emt 0:01:01]}
1-0